Cogmind - Beta 14 *** ADVENTURER MODE // 2024.09.06 @ 02:11:23 Player: Doske Result: Self-destructed Performance ------------- Evolutions (1) 500 Regions Visited (2) 400 Robots Destroyed (12) 60 Value Destroyed (289) 289 Prototype IDs (0) 0 Alien Tech Used (0) 0 Bonus (0) 0 TOTAL SCORE: 1249 Bonus ------- None Cogmind --------- Core Integrity 358/400 Matter 300/300 Energy 250/250 System Corruption 0% Temperature Cool (0) Movement Rolling (90) Location -9/Materials Parts ------- > --- POWER (1) -------- Ion Engine > --- PROPULSION (2) --- Armored Wheel Armored Wheel > --- UTILITY (4) ------ Medium Storage Unit Terrain Scanner Backup Plating I > --- WEAPON (2) ------- Light Assault Rifle Light Assault Rifle > --- INVENTORY (10) --- Light Ion Engine Light Nuclear Core Light Treads Armored Wheel Small Storage Unit Targeting Computer Heavy EM Pulse Gun Light Assault Rifle Rocket Launcher Peak State ------------ > --- POWER ------------ Ion Engine > --- PROPULSION ------- Armored Wheel Armored Wheel > --- UTILITY ---------- Medium Storage Unit Terrain Scanner Backup Plating I > --- WEAPON ----------- Light Assault Rifle Light Assault Rifle > --- INVENTORY -------- Light Ion Engine Light Nuclear Core Armored Wheel Small Storage Unit Targeting Computer Heavy EM Pulse Gun Light Assault Rifle Rocket Launcher [Rating: 11] Favorites ----------- Power Ion Engine Engine Ion Engine Propulsion Light Treads Treads Light Treads Wheel Armored Wheel Utility Backup Plating I Device Terrain Scanner Storage Small Storage Unit Protection Backup Plating I Weapon Light Assault Rifle Ballistic Gun Light Assault Rifle Build | -11 -10 -9 ------- Run | Yrd Mat Mat Slots Evolved 2 | . . 2 Power . | . . . Propulsion . | . . . Utility 2 | . . 2 Weapon . | . . . Parts Attached 12 | 6 5 1 Power 1 | 1 . . Engine 1 | 1 . . Core . | . . . Reactor . | . . . Propulsion 6 | 2 4 . Treads 2 | 2 . . Leg . | . . . Wheel 4 | . 4 . Hover . | . . . Flight . | . . . Utility 3 | 1 1 1 Device 1 | . . 1 Storage 2 | 1 1 . Processor . | . . . Hackware . | . . . Protection . | . . . Artifact . | . . . Weapon 2 | 2 . . Energy Gun . | . . . Energy Cannon . | . . . Ballistic Gun 2 | 2 . . Ballistic Cannon . | . . . Launcher . | . . . Special Weapon . | . . . Impact Weapon . | . . . Slashing Weapon . | . . . Piercing Weapon . | . . . Special Melee Weapon . | . . . Unidentified Prototypes . | . . . Parts Lost . | . . . Power . | . . . Propulsion . | . . . Utility . | . . . Weapon . | . . . Highest Loss Streak . | . . . To Critical Strikes . | . . . Average Slot Usage (%) 97 | . 99 81 Engine 13 | . 14 11 Treads 13 | . 15 . Wheel 13 | . 12 22 Storage 13 | . 14 11 Protection 13 | . 13 11 Ballistic Gun 27 | . 28 22 Peak Build Rating 11 | 6 10 11 Average Rating 8 | 4 8 10 On Entrance 5 | . 6 10 Naked Turns . | . . . Heaviest Build 19 | 12 18 19 Greatest Support 40 | 40 40 24 Greatest Overweight (x) . | . . . Average Overweight (x) . | . . . Largest Inventory Capacity 10 | 8 10 10 Average Capacity 8 | 7 8 10 Most Carried 9 | 3 8 9 Average Carried 5 | 1 5 7 Final Capacity 10 | 8 10 10 Final Carried 9 | 2 7 9 Class Distribution -------------------- 100% | Mutant Dominant Class ---------------- Mutant | -10/Materials Mutant | -9/Materials Resources | -11 -10 -9 ----------- Run | Yrd Mat Mat Matter Collected 375 | 266 75 34 Remotely . | . . . Salvage Created 460 | 75 284 101 Parts 30 | 3 14 13 Haulers Intercepted 1 | . 1 . Recyclers Shooed . | . . . Parts Field Recycled . | . . . Retrieved Matter . | . . . Parts Self-Destructed . | . . . Prevented . | . . . Kills | -11 -10 -9 ------- Run | Yrd Mat Mat Combat Hostiles Destroyed 10 | . 5 5 Guns 10 | . 5 5 Classes Destroyed 5 | 1 2 2 Hauler 1 | . 1 . Recycler 1 | 1 . . Swarmer 4 | . . 4 Grunt 5 | . 5 . Sentry 1 | . . 1 Best Kill Streak 5 | 1 2 5 Combat Bots Only 5 | . 2 5 Max Kills in Single Turn 1 | 1 1 1 Gunslinging . | . . . Exploded . | . . . Melee . | . . . Uniques/NPCs Destroyed . | . . . Combat | -11 -10 -9 -------- Run | Yrd Mat Mat Hostile Shots Fired 56 | . 21 35 Missed 13 | . 4 9 Damage Taken 423 | . 215 208 Core 42 | . . 42 Absorbed by Shields . | . . . Ignored by Resistances 126 | . 64 62 Core Remaining (%) 100 | 100 100 . Volleys Fired 29 | 3 19 7 Largest 2 | 2 2 2 Hottest 40 | 40 40 40 Shots Fired 58 | 6 38 14 Gun 58 | 6 38 14 Cannon . | . . . Launcher . | . . . Special . | . . . Kinetic 58 | 6 38 14 Thermal . | . . . Explosive . | . . . Electromagnetic . | . . . Robot Hit Streak 23 | 4 23 7 Robot Miss Streak 2 | 1 2 1 Penetration Max . | . . . Secondary Targets . | . . . Shots Hit Robots 46 | 4 32 10 Core Hits 25 | 1 17 7 Critical Kills 1 | 1 . . Critical Parts Destroyed . | . . . Critical Strikes 1 | 1 . . Destroy 1 | 1 . . Melee Attacks . | . . . Impact . | . . . Slashing . | . . . Piercing . | . . . Sneak Attacks . | . . . Combat Hostiles . | . . . Follow-up Attacks . | . . . Damage Inflicted 376 | 34 256 86 Guns 375 | 34 255 86 Cannons . | . . . Explosions . | . . . Melee . | . . . Ramming 1 | . 1 . Kinetic 375 | 34 255 86 Thermal . | . . . Explosive . | . . . Electromagnetic . | . . . Impact . | . . . Slashing . | . . . Piercing . | . . . Highest Corruption . | . . . Average Corruption . | . . . Corruption Purged . | . . . Corruption Blocked . | . . . Overload Shots . | . . . Overflow Damage . | . . . Projectiles . | . . . Explosions . | . . . Melee . | . . . Knockbacks . | . . . Impact . | . . . Kinetic . | . . . Secondary . | . . . Self-Inflicted Damage . | . . . Shots . | . . . Rammed 1 | . 1 . Targets Rammed 1 | . 1 . Kicked . | . . . Crushed . | . . . Highest Temperature 26 | . 26 10 Average Temperature 9 | . 9 6 Received Heat Transfer 189 | . 144 45 Siege Activations . | . . . Robots Corrupted . | . . . Combat Hostiles . | . . . Parts Fried . | . . . Impact Corruptions . | . . . Robots Melted . | . . . Combat Hostiles . | . . . Parts Melted . | . . . Heat Transferred . | . . . Parts Sabotaged . | . . . Parts Stolen . | . . . Parts Stripped . | . . . Power Chain Reactions . | . . . Alert | -11 -10 -9 ------- Run | Yrd Mat Mat Peak Influence 196 | 5 158 196 Initial 16 | . 2 16 Average 60 | 1 60 110 Maximum Alert Level . | . . . Low Security (%) 100 | 100 100 100 Level 1 . | . . . Level 2 . | . . . Level 3 . | . . . Level 4 . | . . . Level 5 . | . . . High Security . | . . . Max Security . | . . . Squads Dispatched . | . . . Investigation . | . . . Extermination . | . . . Reinforcement . | . . . Assault . | . . . Garrison . | . . . Intercept . | . . . Searches Triggered . | . . . Construction Impeded . | . . . Haulers Reinforced . | . . . Active Scanning Responses . | . . . Cargo Convoy Interrupts . | . . . Stealth | -11 -10 -9 --------- Run | Yrd Mat Mat Distress Signals 3 | . 2 1 Communications Jammed . | . . . Distress Signals . | . . . Times Spotted 33 | . 18 15 Peak Tracking Total 10 | . 4 10 Tactical Retreats 6 | . 5 1 Traps | -11 -10 -9 ------- Run | Yrd Mat Mat Traps Triggered 1 | . 1 . Indirectly . | . . . Trap Hack Attempts . | . . . Triggered . | . . . Disarmed . | . . . Reprogrammed 6 | . 6 . Reused . | . . . Traps Extracted . | . . . Installed . | . . . Triggered . | . . . Objects Rigged 2 | . 2 . Machines | -11 -10 -9 ---------- Run | Yrd Mat Mat Machines Disabled . | . . . Max in Single Turn . | . . . Machines Repaired . | . . . Machines Dismantled . | . . . Machines Sabotaged . | . . . Overloaded Fab Kills . | . . . Hacking | -11 -10 -9 --------- Run | Yrd Mat Mat Machines Accessed 9 | . 9 . Terminals 8 | . 8 . Fabricators . | . . . Repair Stations 1 | . 1 . Recycling Units . | . . . Scanalyzers . | . . . Garrison Access . | . . . Total Hacks 27 | . 27 . Successful 16 | . 16 . Failed 11 | . 11 . Catastrophic 4 | . 4 . Database Lockouts . | . . . Manual 20 | . 20 . Terminals 24 | . 24 . Fabricators . | . . . Repair Stations 3 | . 3 . Recycling Units . | . . . Scanalyzers . | . . . Garrison Access . | . . . Terminal Hacks 9 | . 9 . Record 2 | . 2 . Branch Access Points 1 | . 1 . Unreport Threat 1 | . 1 . Locate Traps 1 | . 1 . Reprogram Traps 1 | . 1 . Maintenance Status 1 | . 1 . Zone Layout 2 | . 2 . Fabricator Hacks . | . . . Repair Station Hacks 2 | . 2 . Scan Component 1 | . 1 . Refit 1 | . 1 . Recycling Unit Hacks . | . . . Scanalyzer . | . . . Garrison Access Hacks . | . . . Unauthorized Hacks 5 | . 5 . Terminals 5 | . 5 . Track 1 | . 1 . Botnet 3 | . 3 . Detonate 1 | . 1 . Fabricators . | . . . Repair Stations . | . . . Recycling Units . | . . . Scanalyzers . | . . . Garrison Access . | . . . Data Cores Recovered . | . . . Used . | . . . Hacking Detections 8 | . 8 . Full Trace Events 3 | . 3 . Feedback Events . | . . . Feedback Blocked . | . . . Robot Schematics Acquired . | . . . Robots Built . | . . . Authchips . | . . . Time . | . . . Total Robot Build Rating . | . . . Part Schematics Acquired . | . . . Parts Built . | . . . Authchips . | . . . Time . | . . . Total Part Build Rating . | . . . Parts Repaired . | . . . Time . | . . . Parts Recycled . | . . . Recycled Matter . | . . . Retrieved Matter . | . . . Retrieved Components . | . . . Parts Scanalyzed . | . . . Part Schematics Acquired . | . . . Parts Damaged . | . . . Bothacking | -11 -10 -9 ------------ Run | Yrd Mat Mat Used RIF Installer . | . . . Robots Hacked . | . . . Non-combat . | . . . Combat . | . . . Robot Hacks Applied . | . . . Relay Couplers Released . | . . . Fabnet Peak Effective % . | . . . Robots Rewired . | . . . Allies Hacked . | . . . Hacks Repelled . | . . . Allies | -11 -10 -9 -------- Run | Yrd Mat Mat Total Allies . | . . . Largest Group . | . . . Highest-Rated Group . | . . . Highest-Rated Ally . | . . . Total Orders . | . . . Ally Attacks . | . . . Total Damage . | . . . Kills . | . . . Allies Corrupted . | . . . Allies Melted . | . . . Intel | -11 -10 -9 ------- Run | Yrd Mat Mat Robot Analysis Total . | . . . Derelict Logs Recovered . | . . . Drone Launches . | . . . Drone Recoveries . | . . . Exploration | -11 -10 -9 ------------- Run | Yrd Mat Mat Turns Passed 1048 | 122 792 134 Spaces Moved 744 | 77 545 122 Core 22 | 22 . . Treads 301 | 55 246 . Legs . | . . . Wheels 421 | . 299 122 Hover . | . . . Flight . | . . . Fastest Speed 50 | 50 90 90 Average Speed 117 | 128 121 90 Slowest Speed 160 | 160 160 90 Overloaded Moves . | . . . Propulsion Burnouts . | . . . Robots Hopped . | . . . Cave-ins Triggered . | . . . Exploration Rate (%) 38 | 4 93 18 Regions Visited 2 Branch Regions . Pre-discovered Areas . | . . . Known Exits Taken . | . . . Unknown Exits Taken 2 | 1 1 . Scrap Searched . | . . . Spaces Dug . | . . . Terrain Destroyed . | . . . Melee . | . . . Projectile . | . . . AOE . | . . . Terrain Rammed . | . . . Walls Destroyed . | . . . Machines Disabled . | . . . Actions | -11 -10 -9 --------- Run | Yrd Mat Mat Total 874 | 95 645 134 Wait 63 | 2 59 2 Move 742 | 76 544 122 Hop . | . . . Pick Up 20 | 8 10 2 Fast Attach 1 | . . 1 Attach 8 | 6 2 . Detach 2 | . 2 . Swap 3 | . 3 . Drop 5 | . 5 . Fire 29 | 3 19 7 Melee . | . . . Ram . | . . . Kick . | . . . Crush 1 | . 1 . Escape Stasis . | . . . Rewire . | . . . Trap . | . . . Miscellaneous . | . . . Route ------- -11/Scrapyard -10/Materials (discovered 5 exits: [*Mat x3] / *Min x2) -9/Materials (discovered 1 exit: [*Sto]) History --------- Turn | Location | Event 12 | -11/Scrapyard | Discovered new exit (range 16) 123 | -11/Scrapyard | Entered Materials 314 | -10/Materials | Build established: Mutant 416 | -10/Materials | Discovered new exit (range 6) 549 | -10/Materials | Discovered new exit (range 12) 662 | -10/Materials | Discovered new exit (range 14) 696 | -10/Materials | Discovered new exit (range 7) 712 | -10/Materials | Identified exit to Mines 900 | -10/Materials | Discovered new exit (range 6) 915 | -10/Materials | Entered another Materials area 915 | -9/Materials | Evolved 2 slots: Utility x2 915 | -9/Materials | Discovered new exit (range 6) 1049 | -9/Materials | Self-destructed Last Messages --------------- infiltrated, the entrance and inner tunnel may be permanently sealed to prevent passage and contain the threat. 00900_ EXIT=FOUND PARAMETERS=UTILITY+2 LOCATION=UNKNOWN GOAL=ESCAPE 00915_ EXIT=FOUND 00963_ S-10 Pest destroyed. 00973_ Acquired Targeting Computer. 00975_ R-06 Scavenger collects Flight Unit. 00978_ R-06 Scavenger collects Lgt. Assault Rifle. 00979_ S-10 Pest destroyed. 00983_ Acquired 12 matter. 00989_ Y-45 Defender destroyed. 00990_ R-06 Scavenger collects Flight Unit. 00993_ Acquired Terrain Scanner. 00995_ Acquired 22 matter. 00997_ Acquired Lgt. Treads. 01023_ R-06 Scavenger inserts Flight Unit into recycling unit. 01042_ W-16 Scout distress signal alerts nearby ally. Map ----- +----------------------------------------------------+ | ????#######= #???????????????????????????????? | | ???# # """ #?#?????????????????????????????? | | ???# "" # """ #?#?????????????????????????????? | | #??# "Y # """ #???????????????????????????????? | | #??# "" # #???????????????????????????????? | | #???? #? ?????????????? ?????????????????? | | #?????? ####+#############?????????????????????? | | #?????###/## ## #?????????????????????? | | ##????# ## """ ! #?????????????????????? | | ###### T / """ #???????#?????????????? | | ## """ #?????????????????????? | | ########### ## #?????????????????????? | | #?#???????### ####" """ #?#???????????????????? | | ##??????????## #??#T """ #?????????????????????? | | #????????????#g####" """ #?????????????????????? | | #??########### + #?????????????????????? | | #### * [ # #####/####?????????????????????? | | %+% %! *# ### ########### ??????????? | | ### [!""" # g ?????????? | | #?# """ + ?????????? | | #?# """ # ?????????? | | #?# "" """ ########u ########## ?????????? | | #?#=S"" """ #??????## ########????????????????? | | #?#%"" #???????# # #????????????????? | | #?#+#########???????# # [[ #????????????????? | | #?#[## !#?????????# @ [! #????????????????? | | ### ## #?????????# # [ #????????????????? | | ### ## #?????????# # #????????????????? | | ## #?????????# #? | #????????????????? | | # ![|#?????????# #?######????????????????? | | + ![|#?????????+ #???????????????????????? | | "" # ![ #?????????# #???????????????????????? | | "" # #?????????# #???????????????????????? | | "" # #?????????# ????????????????????????? | | ######?????????# ????????????????????????? | | #??????????????# ????????????????????????? | | "" #??????????????# ????????????????????????? | | "" #??????????????# ????????????????????????? | | "" #########??????# ????????????????????????? | | +??????? ????????????????????????? | | #########??????????????????????????????????? | | "" #??????????????????????????????????????????? | | "" #??????????????????????????????????????????? | | "" ########???????????????????????????????????? | | # !#???????????????????????????????????? | | + """ #???????????????????????????????????? | | ## #### """ #???????????????????????????????????? | | ?# ???# """ #???????????????????????????????????? | | ## ???# #???????????????????????????????????? | | ???# #???????????????????????????????????? | +----------------------------------------------------+ Best States ------------- Heat Dissipation 28 Energy Generation 10 Energy Capacity 250 Matter Stores 300 Matter Capacity 300 Sight Range 16 Terrain Scan Range 14 Terrain Scan Density 10 Armor Coverage 80 Resistance: KI 20 Resistance: TH 20 Resistance: EX 20 Resistance: EM 20 Resistance: I 20 Resistance: S 20 Resistance: P 20 Evasion (%) 50 Recoil Reduction 2 Offensive Hacking 10 Item Schematics ----------------- None Robot Schematics ------------------ None Fabricated ------------ Nothing Alien Tech Used ----------------- None Achievements -------------- None Challenges ------------ None Game ------ Seed SubdwellerTowerProtection Manual? 0 Play Time 00:30:31 Cumulative 19.5 hours Start 2024.08.20 @ 20:04:16 End 2024.09.06 @ 02:11:23 Sessions 3 Manual Loads 0 Difficulty Adventurer Special Mode None Game No. 14 Rogue 0 Adventurer 14 Explorer 0 Win Type - Total 0 Types 0/0/0/0/0/0/0/0/0 Lore% 9 Gallery% 16 Achievement% 22 Wizard Run 0 Options --------- Layout 0 ASCII 0 Keyboard 1 Movement Numpad Keybinds 0 Fullscreen 2 Font 24/Smallcaps Map View 76x50 Zoom Use 3% Tactical HUD 1 Map Filters NONE Filters NONE Steam 1 RUN: 38a72e2f-a8d9-4826-a20a-62dbf4e62fe2